bitfinex/quotes_ETHUSD_20250130
["timestamp","ask_amount","ask_price","bid_price","bid_amount"]
[1738232353006,4.48654351,3213.4,3213.0,0.05240192]
[1738232353176,3.11219,3213.2,3212.7,3.21364]
[1738232353377,3.11219,3213.2,3213.1,0.05239236]
[1738232353562,3.11219,3213.2,3212.7,3.21364]
[1738232353893,3.11229,3213.1,3212.8,0.05242103]
[1738232354411,3.11229,3213.1,3212.9,0.05241147]
[1738232354859,6.11211,3213.3,3212.7,3.21364]
[1738232355019,3.7652,3213.4,3213.0,0.05240192]
[1738232355163,3.11192,3213.5,3212.9,6.22479]
[1738232355368,3.11203,3213.4,3213.0,0.05240192]
[1738232355594,6.1121,3213.3,3213.0,0.05240192]
[1738232355794,3.0,3213.4,3212.9,3.11237]
[1738232355995,6.112,3213.4,3213.1,0.05239236]
[1738232356271,3.0,3213.4,3213.0,0.05240192]
[1738232356462,3.0,3213.4,3213.2,0.0523828]
[1738232356668,3.0,3213.4,3213.1,0.05239236]
[1738232356966,3.0,3213.4,3213.2,0.0523828]
[1738232357284,3.0,3213.4,3212.9,3.11244]
[1738232357482,3.0,3213.4,3213.3,0.05237325]
[1738232357970,3.72389973,3213.8,3213.3,3.11206]
[1738232358308,0.56566667,3213.2,3212.9,3.11239]
[1738232358512,0.56566667,3213.2,3212.9,6.22477]
[1738232358730,0.56566667,3213.2,3213.0,3.11235]
[1738232360129,0.56566667,3213.2,3212.9,3.11238]
[1738232360130,0.56566667,3213.2,3213.1,3.11225]
[1738232365129,0.56566667,3213.2,3213.1,3.14337026]
[1738232365434,0.56566667,3213.2,3213.1,4.04906003]
[1738232366201,0.56566667,3213.2,3213.1,4.08017762]
[1738232366404,0.56566667,3213.2,3213.1,4.04906003]
[1738232368432,0.56566667,3213.2,3213.1,4.10068077]
[1738232371192,0.56566667,3213.2,3213.1,0.05162074]
[1738232371351,0.56566667,3213.2,3212.9,3.1124]
[1738232371551,0.56566667,3213.2,3213.0,0.0515495]
[1738232372079,0.56566667,3213.2,3213.1,3.11225]
[1738232372280,0.56566667,3213.2,3213.1,3.16378994]
[1738232372686,0.56566667,3213.2,3213.1,3.79139593]
[1738232372986,0.56566667,3213.2,3213.1,3.16378994]
[1738232373196,0.56566667,3213.2,3213.1,0.05153994]
[1738232373373,0.56566667,3213.2,3212.9,3.1124]
[1738232373544,0.56566667,3213.2,3213.0,0.05148339]
[1738232374194,0.8082,3213.1,3213.0,0.05148339]
[1738232374403,0.56566667,3213.2,3212.8,3.11249]
[1738232374758,0.56566667,3213.2,3212.9,0.05142685]
[1738232376101,3.67783667,3213.2,3212.9,0.05142685]
[1738232376307,4.43765334,3213.2,3212.7,3.11263]
[1738232376620,0.56566667,3213.2,3212.8,3.11254]
[1738232376769,0.56566667,3213.2,3212.8,3.1639764]
[1738232376968,0.56566667,3213.2,3213.0,3.1123]
[1738232377212,0.56566667,3213.2,3213.1,3.16365773]
[1738232377381,0.56566667,3213.2,3213.1,0.05140773]
[1738232382871,0.56566667,3213.2,3213.1,0.34287905]
[1738232384224,3.67782667,3213.2,3213.1,0.34287905]
[1738232384523,7.94282934,3213.2,3213.1,0.34287905]
[1738232386178,7.94282934,3213.2,3213.1,0.05140773]
[1738232386505,3.11242,3213.0,3212.5,3.11282]
[1738232386706,6.22484,3213.0,3212.5,3.11282]
[1738232387413,3.11252,3212.9,3212.2,3.11306]
[1738232387585,3.11252,3212.9,3212.2,3.424366]
[1738232387783,3.11252,3212.9,3212.3,0.46634949]
[1738232388127,3.11269,3212.7,3212.3,0.757765]
[1738232388325,6.11293,3212.4,3212.3,0.757765]
[1738232388474,6.802143,3212.4,3212.3,0.757765]
[1738232388698,6.11293,3212.4,3212.3,0.757765]
[1738232389541,3.0,3212.4,3212.3,0.29141551]
[1738232389957,3.0,3212.3,3211.9,3.40479551]
[1738232390706,3.93158,3212.2,3211.9,0.29141551]
[1738232391304,3.93158,3212.2,3211.7,3.11352]
[1738232391522,7.04477,3212.2,3211.7,3.11352]
[1738232391705,3.93158,3212.2,3211.7,3.11352]
[1738232392743,0.8184,3212.2,3211.7,3.736248]
[1738232392905,0.8184,3212.2,3211.9,3.11335]
[1738232393249,3.11335,3212.0,3211.5,3.11374]
[1738232393602,3.11335,3212.0,3211.5,6.22749]
[1738232394108,7.04477,3212.2,3211.6,3.11369]
[1738232394503,7.749247,3212.2,3211.6,3.11369]
[1738232395134,4.636057,3212.2,3211.6,3.11369]
[1738232395340,3.93158,3212.2,3211.6,3.11369]
[1738232397960,3.11323,3212.1,3211.6,3.11369]
[1738232398321,3.11323,3212.1,3211.7,0.05199711]
[1738232401063,0.8184,3212.2,3211.9,3.11333]
[1738232401276,3.1129,3212.5,3211.2,0.1667771]
[1738232401277,3.1129,3212.5,3211.8,0.05244681]
[1738232401476,3.9181,3212.5,3212.0,3.11324]
[1738232401985,3.9181,3212.5,3212.1,0.05241812]
[1738232403680,0.8052,3212.5,3212.1,0.05241812]
[1738232405596,0.7663,3212.8,3212.1,3.48220393]
[1738232405757,0.7663,3212.8,3212.4,3.11293]
[1738232405957,0.7663,3213.0,3212.5,3.11279]
[1738232406280,3.1123,3213.1,3212.6,3.11269]
[1738232406452,3.1123,3213.1,3212.6,3.1650934]
[1738232407746,6.22464,3213.1,3212.6,0.0524034]
[1738232408067,3.1123,3213.1,3212.5,3.11282]
[1738232408264,3.1123,3213.1,3212.7,0.05234606]
[1738232408447,3.1123,3213.1,3212.4,3.11291]
[1738232408782,3.1123,3213.1,3212.0,3.11329]
[1738232408783,3.89789,3212.6,3212.0,3.11329]
[1738232408982,6.89771,3212.8,3212.3,3.11303]
[1738232409485,3.0,3212.9,3212.4,0.03112731]
[1738232409690,3.0,3213.0,3212.6,3.11273]
[1738232409849,1.36116667,3213.2,3212.1,0.03112556]
[1738232410049,1.36116667,3213.2,3212.3,3.113]
[1738232410050,0.8164,3212.7,3212.3,3.113]
[1738232411661,0.8164,3212.7,3212.3,6.22596]
[1738232411985,0.8164,3212.7,3212.3,3.11296]
[1738232412189,0.8164,3212.7,3212.3,6.22592]
[1738232412899,0.8164,3212.7,3212.3,3.11296]
[1738232413371,0.8164,3213.0,3212.6,3.11271]
[1738232413560,3.67786667,3213.2,3212.7,3.11263]
[1738232413561,3.0,3213.1,3212.7,3.11263]
[1738232413758,3.0,3213.1,3212.7,3.16482906]
[1738232413960,3.0,3213.1,3212.7,3.16476906]
[1738232415102,0.56566667,3213.2,3212.8,3.11254]
[1738232415307,0.56566667,3213.2,3212.8,3.79239794]
[1738232415491,0.56566667,3213.2,3213.0,3.11233]
[1738232416113,0.56566667,3213.2,3213.1,0.0520506]
[1738232416308,0.56566667,3213.2,3212.9,3.11239]
[1738232416607,0.56566667,3213.2,3213.1,0.0520506]
[1738232417064,0.56566667,3213.2,3212.9,3.11239]
[1738232417270,0.56566667,3213.2,3213.1,0.0520506]
[1738232417470,0.56566667,3213.2,3212.9,3.11239]
[1738232417672,0.56566667,3213.2,3213.1,0.0520506]
[1738232417902,0.56566667,3213.2,3212.9,3.11239]
[1738232418101,0.56566667,3213.2,3213.1,0.0520506]
[1738232418300,0.56566667,3213.2,3212.9,3.11239]
[1738232418609,0.56566667,3213.2,3213.1,0.0520506]
[1738232419100,0.56566667,3213.2,3212.8,3.11254]
[1738232419305,0.56566667,3213.2,3213.1,0.0520506]
[1738232419472,0.56566667,3213.2,3212.8,3.11254]
[1738232419672,0.56566667,3213.2,3213.1,0.0520506]
[1738232419883,3.67782667,3213.2,3212.6,3.11272]
[1738232420085,3.67782667,3213.2,3213.1,0.0520506]
[1738232420314,3.67782667,3213.2,3212.7,3.11264]
[1738232420544,0.56566667,3213.2,3213.1,0.0520506]
[1738232420822,0.56566667,3213.2,3213.1,3.11225]
[1738232421117,0.56566667,3213.2,3213.1,3.1643006]
[1738232421416,0.56566667,3213.2,3213.1,3.79196566]
[1738232421620,0.56566667,3213.2,3213.1,0.67971566]
[1738232422189,3.0,3213.5,3213.1,0.67971566]
[1738232422571,3.0,3213.5,3213.1,3.79191566]
[1738232423430,3.0,3213.5,3213.1,3.1642506]
[1738232424855,3.11211,3213.3,3213.1,0.0520506]
[1738232425035,3.11211,3213.3,3212.8,3.11252]
[1738232425537,6.11211,3213.3,3212.8,3.11252]
[1738232425682,0.7781,3213.2,3212.9,0.05166557]
[1738232427893,3.0,3213.3,3212.9,0.05166557]
[1738232428095,3.0,3213.3,3212.9,0.67933213]
[1738232429494,3.0,3213.3,3212.9,0.05166557]
[1738232429693,3.0,3213.3,3212.9,3.16406557]
[1738232432365,3.7773,3213.5,3213.2,3.11215]
[1738232432514,3.0,3213.5,3213.1,3.11224]
[1738232432715,3.0,3213.5,3213.3,0.09195009]
[1738232432916,3.0,3213.5,3213.1,3.11224]
[1738232433242,3.0,3213.5,3213.0,3.11235]
[1738232433447,6.11187,3213.5,3213.2,0.0919609]
[1738232433863,3.11202,3213.4,3212.8,3.11245]
[1738232434156,3.11202,3213.4,3213.3,0.09190602]
[1738232434314,3.11202,3213.4,3212.8,3.11245]
[1738232434514,3.11202,3213.4,3213.3,0.09188398]
[1738232434755,3.11202,3213.4,3212.8,3.11245]
[1738232434956,3.11202,3213.4,3213.3,0.09188398]
[1738232435128,3.11202,3213.4,3212.8,3.11245]
[1738232435330,3.11202,3213.4,3213.3,0.09188398]
[1738232435653,3.11202,3213.4,3212.9,3.11245]
[1738232435860,3.11202,3213.4,3213.3,0.09188398]
[1738232436152,3.11202,3213.4,3212.9,3.11245]
[1738232436153,6.11187,3213.5,3212.9,3.4036773]
[1738232436376,9.22381,3213.5,3213.3,0.09188398]
[1738232436549,9.22381,3213.5,3212.9,3.4036773]
[1738232436750,6.11187,3213.5,3213.4,0.09188419]
[1738232436965,3.11201,3213.4,3212.9,3.4036773]
[1738232437466,0.7924,3213.3,3212.9,3.4036773]
[1738232437964,3.11201,3213.4,3212.9,6.85634503]
[1738232438118,3.11201,3213.4,3212.9,3.74396503]
[1738232438317,3.11201,3213.4,3212.9,3.45273773]
[1738232438558,3.11201,3213.4,3213.0,3.11234]
[1738232439345,3.11201,3213.4,3212.9,3.45273773]
[1738232439531,3.11201,3213.4,3212.9,3.11237]
[1738232440467,3.11201,3213.4,3212.9,6.22476]
[1738232440635,3.11201,3213.4,3212.9,3.11237]
[1738232441487,3.11201,3213.4,3213.0,0.29141247]
[1738232442957,3.11201,3213.4,3212.9,3.11237]
[1738232443186,3.11201,3213.4,3213.1,0.09188724]
[1738232443483,3.11201,3213.4,3213.2,0.09187643]
[1738232443774,3.11201,3213.4,3212.9,3.11237]
[1738232443981,3.0,3213.5,3213.3,0.09186562]
[1738232444153,3.0,3213.5,3213.0,3.11233]
[1738232444482,3.0,3213.5,3213.4,0.09185481]
[1738232444782,7.04506,3213.6,3213.1,3.20407724]
[1738232444783,0.8214,3213.6,3213.1,3.20407724]
[1738232444934,3.8214,3213.6,3213.4,0.09181807]
[1738232445135,3.8214,3213.6,3213.2,3.43561987]
[1738232445369,3.8214,3213.6,3213.5,0.09180726]
[1738232445580,3.8214,3213.6,3213.2,3.1121]
[1738232445785,3.8214,3213.6,3213.5,0.09180726]
[1738232446078,0.8214,3213.6,3213.1,3.11219]
[1738232446280,3.93317,3213.6,3213.5,0.09180726]
[1738232446640,3.0,3213.5,3213.1,3.11219]
[1738232447874,0.8214,3213.6,3213.1,3.11219]
[1738232448079,0.8214,3213.6,3213.2,3.423359]
[1738232448938,0.8214,3213.6,3213.3,0.29170928]
[1738232449379,0.8214,3213.6,3213.3,0.3228284]
[1738232449551,6.1117,3213.7,3213.3,0.29170928]
[1738232450581,3.0,3213.7,3213.0,3.11233]
[1738232450880,3.0,3213.5,3213.1,3.11221]
[1738232451484,0.36189502,3214.8,3213.2,0.03111809]
[1738232451688,3.11014,3215.3,3213.7,3.11161]
[1738232451689,0.7854,3214.2,3213.7,3.11161]
[1738232451996,3.89664,3214.2,3213.7,3.11161]
[1738232452840,3.7854,3214.2,3213.7,3.11161]
[1738232453042,6.89661,3214.2,3213.7,3.11161]
[1738232454390,6.89661,3214.2,3213.1,3.11223]
[1738232454391,0.7854,3213.6,3213.1,3.1122]
[1738232454739,0.7854,3213.6,3213.1,6.22439]
[1738232455789,0.7854,3213.6,3213.1,3.11219]
[1738232455964,0.7854,3213.6,3213.2,3.11213]
[1738232456707,0.7854,3213.6,3213.3,3.11205]
[1738232456904,0.7854,3213.6,3213.3,3.73758576]
[1738232457261,3.8193,3213.8,3213.3,3.73758576]
[1738232457463,3.8193,3213.8,3213.3,3.11205]
[1738232457659,6.9309,3213.8,3213.4,0.29140513]
[1738232458064,6.9309,3213.8,3213.5,0.09149207]
[1738232459716,3.0,3213.9,3213.6,0.09148126]
[1738232459862,3.0,3213.9,3213.4,3.11195]
[1738232460311,3.94405,3214.0,3213.5,3.20310847]
[1738232460485,0.8326,3214.0,3213.6,3.11175]
[1738232460679,0.8326,3214.0,3213.6,3.20304766]
[1738232460680,3.8326,3214.0,3213.6,3.20304766]
[1738232460896,3.8326,3214.0,3213.6,0.09129766]
[1738232461099,6.94399,3214.0,3213.5,3.11186]
[1738232461414,6.94399,3214.0,3213.7,0.09128685]
[1738232461613,6.94399,3214.0,3213.6,0.09129766]
[1738232461816,6.94399,3214.0,3213.8,0.09127604]
[1738232462018,6.94399,3214.0,3213.7,0.09128685]
[1738232462178,6.94399,3214.0,3213.9,0.09126523]
[1738232462372,6.94399,3214.0,3213.5,3.11186]
[1738232462619,6.94399,3214.0,3213.9,0.09126523]
[1738232462813,6.94399,3214.0,3213.5,3.11186]
[1738232462973,6.94399,3214.0,3213.9,0.09126523]
[1738232463612,0.8326,3214.0,3213.6,3.11176]
[1738232463793,0.8326,3214.0,3213.9,0.09126523]
[1738232464020,0.8326,3214.0,3213.6,3.11176]
[1738232464218,0.8326,3214.0,3213.9,0.09126523]
[1738232464735,3.7971,3214.3,3213.7,3.11165]
[1738232464946,3.1112,3214.2,3213.9,0.09126523]
[1738232465246,3.1112,3214.2,3213.7,3.11165]
[1738232465589,3.1112,3214.2,3213.8,0.09127604]
[1738232466034,3.1112,3214.2,3213.7,6.22324]
[1738232466334,3.1112,3214.2,3213.8,0.09127604]
[1738232466634,3.1112,3214.2,3213.7,3.733914]
[1738232466832,3.1112,3214.2,3213.9,0.09126523]
[1738232466989,3.1112,3214.2,3213.8,0.09127604]
[1738232467189,3.1112,3214.2,3214.0,0.09125443]
[1738232467392,3.1112,3214.2,3213.9,0.09126523]
[1738232467590,7.57153,3214.2,3214.1,0.09124362]
[1738232467804,7.57153,3214.2,3214.0,0.09125443]
[1738232467805,6.11129,3214.1,3214.0,0.09125443]
[1738232468109,0.762,3213.3,3212.8,3.11248]
[1738232468640,0.762,3213.3,3212.6,3.11268]
[1738232468801,3.11225,3213.2,3212.6,3.11268]
[1738232468996,3.11225,3213.2,3212.7,0.311268]
[1738232470204,3.11225,3213.2,3212.7,3.423908]
[1738232470405,3.11201,3213.4,3212.9,3.1124]
[1738232470603,0.7785,3213.5,3212.8,3.11248]
[1738232470834,6.89039,3213.5,3213.0,3.11234]
[1738232473192,3.0,3213.6,3213.2,3.11215]
[1738232473399,6.11173,3213.7,3213.2,3.11215]
[1738232473733,6.11173,3213.7,3213.3,0.08513013]
[1738232473917,6.11173,3213.7,3213.2,3.11215]
[1738232474436,3.11173,3213.7,3213.3,0.08513013]
[1738232474736,3.11173,3213.7,3213.2,3.734599]
[1738232474892,3.11173,3213.7,3213.4,0.08511932]
[1738232475093,3.11173,3213.7,3213.2,3.734599]
[1738232475296,3.11173,3213.7,3213.5,0.08510851]
[1738232475505,3.11173,3213.7,3213.2,3.734599]
[1738232475697,3.11173,3213.7,3213.6,0.0850977]
[1738232475911,3.11173,3213.7,3213.2,3.11215]
[1738232476100,3.11173,3213.7,3213.6,0.0850977]
[1738232476330,3.11173,3213.7,3213.2,3.11215]
[1738232476543,3.89011,3213.8,3213.6,0.0850977]
[1738232476736,3.89011,3213.8,3213.2,3.1121]
[1738232476913,3.89011,3213.8,3213.7,0.08508689]
[1738232477118,3.89011,3213.8,3213.2,3.11209]
[1738232477119,6.89011,3213.8,3213.2,3.11209]
[1738232477447,6.89011,3213.8,3213.7,0.08508689]
[1738232477814,6.11161,3213.8,3213.3,3.11205]
[1738232478022,0.7799,3214.0,3213.7,0.08508689]
[1738232478348,0.61849698,3214.2,3213.7,3.11165]
[1738232478349,3.89118,3214.2,3213.7,3.11165]
[1738232478507,6.11109,3214.3,3213.8,0.77847608]
[1738232480555,9.22226,3214.3,3213.8,0.77847608]
[1738232480754,6.11109,3214.3,3213.8,0.77847608]
[1738232480953,3.0,3214.0,3213.8,0.08507608]
[1738232481135,3.611132,3213.9,3213.1,0.6934]
[1738232481308,3.11192,3213.5,3212.9,3.11238]
[1738232481647,3.93412,3213.5,3212.9,3.80578]
[1738232482006,3.11202,3213.4,3212.9,3.80578]
[1738232482221,3.11202,3213.4,3212.9,0.6934]
[1738232482436,3.11202,3213.4,3213.0,0.2912101]
[1738232484083,3.11211,3213.3,3213.0,0.2912101]
[1738232484289,3.11211,3213.3,3212.8,3.11252]
[1738232484484,3.11211,3213.3,3212.9,0.380592]
[1738232484782,3.93409,3213.5,3212.9,0.380592]
[1738232484935,3.93409,3213.5,3213.0,3.11233]
[1738232485135,0.39899872,3213.2,3213.0,3.11233]
[1738232485888,0.39899872,3213.2,3213.1,3.80565]
[1738232486090,0.39899872,3213.2,3213.1,4.53861931]
[1738232487156,0.39899872,3213.2,3213.1,4.56973895]
[1738232487355,0.39899872,3213.2,3213.1,4.53861931]
[1738232488188,0.39899872,3213.2,3213.1,4.65512928]
[1738232489487,0.39899872,3213.2,3213.1,4.62401277]
[1738232490341,0.39899872,3213.2,3213.1,4.85686842]
[1738232490909,0.39899872,3213.2,3213.1,5.6136493]
[1738232491073,0.39899872,3213.2,3213.1,5.64476394]
[1738232491610,0.39899872,3213.2,3213.1,6.1636493]
[1738232492357,0.39899872,3213.2,3213.1,23.81042843]
[1738232492558,0.39899872,3213.2,3213.1,23.77931463]
[1738232493265,8.72e-06,3213.2,3213.1,23.79431463]
[1738232494606,0.69306002,3214.5,3214.2,3.11117]
[1738232494930,0.69306002,3214.5,3214.3,0.380457]
[1738232495089,0.69306002,3214.5,3214.3,0.08497811]
[1738232495437,0.69306002,3214.5,3214.2,3.11117]
[1738232495575,0.69306002,3214.5,3214.4,0.08496731]
[1738232495778,0.69306002,3214.5,3214.1,3.11128]
[1738232496103,0.69306002,3214.5,3214.2,0.08498892]
[1738232499331,0.69306002,3214.5,3214.3,0.31962189]
[1738232499678,0.69306002,3214.5,3214.4,0.08496731]
[1738232499927,0.64306002,3214.5,3214.4,0.08496731]
[1738232509314,3.90281,3214.7,3214.4,0.08496731]
[1738232509856,3.90281,3214.7,3214.2,3.11113]
[1738232510056,3.90281,3214.7,3214.5,0.08482467]
[1738232510255,3.90281,3214.7,3214.0,3.11134]
[1738232510417,3.75388001,3214.6,3214.1,3.11128]
[1738232510616,3.11105,3214.4,3213.8,3.80492]
[1738232510821,0.819,3214.3,3213.8,3.11152]
[1738232511035,3.93017,3214.3,3213.8,3.11152]
[1738232512244,3.93017,3214.3,3213.8,6.22304]
[1738232512445,3.93017,3214.3,3213.9,1.156304]
[1738232512811,3.93017,3214.3,3213.9,4.267784]
[1738232513046,3.93017,3214.3,3213.9,1.156304]
[1738232513855,0.819,3214.3,3213.9,4.267764]
[1738232514185,0.819,3214.3,3213.9,4.267774]
[1738232514865,3.11124,3214.2,3213.7,8.45163]
[1738232515064,3.11129,3214.1,3214.0,0.29117988]
[1738232516561,3.11129,3214.1,3213.6,3.11177]
[1738232516776,3.11129,3214.1,3213.6,6.22348]
[1738232517137,0.819,3214.3,3213.6,6.22348]
[1738232517477,3.11121,3214.2,3213.7,3.11166]
[1738232517829,3.11121,3214.2,3213.7,3.3448313]
[1738232518033,3.11121,3214.2,3213.8,0.29146107]
[1738232518279,3.11121,3214.2,3213.8,0.37453068]
[1738232520079,0.819,3214.3,3213.8,0.37453068]
[1738232520290,0.819,3214.3,3213.9,0.29146107]
[1738232520575,0.819,3214.3,3214.0,0.083048]
[1738232521073,3.93018,3214.3,3214.0,0.083048]
[1738232522081,3.93018,3214.3,3213.9,3.11147]
[1738232522241,0.819,3214.3,3214.1,0.08303719]
[1738232522444,0.819,3214.3,3213.9,3.11147]
[1738232522645,0.819,3214.3,3214.2,0.08302639]
[1738232522941,0.819,3214.3,3214.2,0.08304836]
[1738232523135,0.819,3214.3,3213.9,3.11147]
[1738232523478,0.819,3214.3,3214.0,0.08305532]
[1738232523681,0.819,3214.3,3214.0,3.19443532]
[1738232524890,1.44206001,3214.6,3214.0,0.71364985]
[1738232525041,1.44206001,3214.6,3214.2,3.11114]
[1738232525241,1.44206001,3214.6,3214.3,3.11102]
[1738232525443,0.799,3214.6,3214.3,3.19402094]
[1738232526447,0.799,3214.6,3214.4,3.11098]
[1738232526663,0.64306001,3214.5,3214.4,3.19397013]
[1738232528391,0.64306001,3214.5,3214.4,0.08299013]
[1738232530595,0.64306001,3214.5,3214.4,3.19399013]
[1738232532395,0.64306001,3214.5,3214.4,3.82450814]
[1738232533155,0.64306001,3214.5,3214.4,3.19399013]
[1738232533783,0.64306001,3214.5,3214.4,3.48538424]
[1738232536700,0.64306001,3214.5,3214.4,0.37438424]
[1738232537203,0.64306001,3214.5,3214.4,4.20989312]
[1738232537698,0.64306001,3214.5,3214.4,4.75989312]
[1738232537904,0.64306001,3214.5,3214.4,5.54698943]
[1738232538407,1e-08,3214.5,3214.4,11.50372451]
[1738232538552,1e-08,3214.5,3214.4,11.7055666]
[1738232538754,1e-08,3214.5,3214.4,12.17143475]
[1738232541252,3.0,3215.8,3214.5,1.2434]
[1738232541463,3.0,3215.8,3215.3,3.11009]
[1738232541870,3.0,3215.8,3215.4,0.08248676]
[1738232542052,3.10955,3215.9,3215.4,0.08248676]
[1738232545534,6.10955,3215.9,3215.4,0.08248676]
[1738232546007,6.10955,3215.9,3215.4,3.19246676]
[1738232546300,6.10955,3215.9,3215.4,0.71274244]
[1738232547555,6.10955,3215.9,3215.4,3.82276244]
[1738232547999,3.0,3215.9,3215.4,3.82276244]
[1738232548171,6.10955,3215.9,3215.4,3.82276244]
[1738232549502,6.10955,3215.9,3215.4,4.51616244]
[1738232549712,3.0,3215.9,3215.6,3.10978]
[1738232549859,3.93378,3216.2,3215.6,3.10976]
[1738232550055,3.93378,3216.2,3215.7,0.08211404]
[1738232551015,0.8245,3216.2,3215.8,3.1096]
[1738232551158,0.7953,3216.4,3215.9,0.6934]
[1738232551366,0.7953,3216.4,3216.0,3.19151166]
[1738232552824,3.90443,3216.4,3216.0,0.08208166]
[1738232553322,0.7953,3216.4,3216.0,3.10942]
[1738232553509,3.90436,3216.4,3216.1,0.08162088]
[1738232554024,3.90436,3216.4,3216.2,0.08161008]
[1738232554180,3.90436,3216.4,3215.9,3.10954]
[1738232554518,3.90436,3216.4,3216.3,0.08159929]
[1738232554718,3.90436,3216.4,3215.9,3.10954]
[1738232554896,3.90436,3216.4,3216.3,0.08159929]
[1738232555090,3.90436,3216.4,3215.9,3.10954]
[1738232555306,3.90436,3216.4,3216.3,0.08159929]
[1738232555506,3.90436,3216.4,3215.9,3.10954]
[1738232555713,3.90436,3216.4,3216.3,0.08159929]
[1738232555913,3.90436,3216.4,3215.9,3.10954]
[1738232556101,3.90436,3216.4,3216.3,0.08159929]
[1738232556628,3.90436,3216.4,3215.9,3.10954]
[1738232556787,3.90436,3216.4,3216.3,0.08159929]
[1738232556988,3.90436,3216.4,3215.9,3.10954]
[1738232557188,3.90436,3216.4,3216.3,0.08159929]
[1738232557383,0.7953,3216.4,3215.7,3.80313]
[1738232557628,0.7953,3216.4,3216.3,0.08159929]
[1738232557830,3.90436,3216.4,3215.9,3.10954]
[1738232557995,3.90436,3216.4,3216.3,0.08159929]
[1738232558226,3.90436,3216.4,3215.9,3.10954]
[1738232558428,3.90436,3216.4,3216.3,0.08159929]
[1738232558755,3.90436,3216.4,3215.9,3.10954]
[1738232558958,3.90436,3216.4,3216.3,0.08159929]
[1738232559470,3.90436,3216.4,3215.9,3.10954]
[1738232559751,3.90436,3216.4,3215.9,3.10952]
[1738232561474,0.7953,3216.4,3215.7,0.6934]
[1738232561763,0.7953,3216.4,3215.9,3.10949]
[1738232561930,0.7953,3216.4,3215.8,3.10961]
[1738232562131,3.10918,3216.3,3215.8,3.10958]
[1738232562966,3.10918,3216.3,3215.8,6.21916]
[1738232563468,3.10937,3216.1,3215.9,0.08141936]
[1738232563619,3.87911,3216.0,3215.5,3.1099]
[1738232565623,3.87911,3216.0,3215.2,9.5034]
[1738232565780,3.87911,3216.0,3215.5,3.10987]
[1738232566075,0.7696,3216.0,3215.6,3.10977]
[1738232566438,0.7696,3216.0,3215.5,3.10987]
[1738232566633,0.7696,3216.0,3215.5,6.21975]
[1738232567128,3.8255,3216.3,3215.6,0.03109732]
[1738232567334,3.8255,3216.3,3216.0,3.10941]
[1738232567335,0.8255,3216.3,3216.0,3.10941]
[1738232567549,3.93448,3216.5,3216.0,3.10941]
[1738232567746,3.10911,3216.4,3215.9,3.10945]
[1738232567956,3.10916,3216.3,3215.9,3.10945]
[1738232568258,3.93448,3216.5,3215.9,3.10945]
[1738232568585,3.10912,3216.4,3215.9,3.10945]
[1738232570891,3.93448,3216.5,3215.9,3.10945]
[1738232571199,7.04353,3216.5,3215.9,3.10945]
[1738232571702,3.93448,3216.5,3215.9,3.10945]
[1738232572007,3.10907,3216.4,3215.9,3.10945]
[1738232572497,3.93448,3216.5,3215.7,3.1097]
[1738232572703,3.10918,3216.3,3215.7,6.21934]
[1738232573203,3.10918,3216.3,3215.8,0.29120179]
[1738232574468,7.04358,3216.5,3215.9,3.10954]
[1738232575373,3.10908,3216.4,3215.9,3.40074179]
[1738232577512,3.10908,3216.4,3216.0,0.6934]
[1738232578216,3.10887,3216.6,3216.1,3.19079529]
[1738232578385,3.10912,3216.4,3216.1,0.08144529]
[1738232578568,3.10912,3216.4,3215.9,3.1095]
[1738232578914,3.10912,3216.4,3216.0,0.08147437]
[1738232579919,3.10925,3216.2,3216.0,0.08147437]
[1738232580100,6.21858,3216.2,3216.0,0.08147437]
[1738232580414,0.6975765,3216.2,3216.1,0.08146358]
[1738232580659,0.8281,3216.1,3215.4,3.80338]
[1738232580768,3.1095,3216.0,3215.4,0.6934]
[1738232580970,3.0,3216.4,3215.1,5.34]
[1738232580971,3.11005,3215.4,3215.1,6.0334]
[1738232581288,3.11005,3215.4,3214.9,3.11042]
[1738232581289,0.7818,3215.4,3214.9,3.11042]
[1738232581499,3.11023,3215.2,3214.9,0.691449]
[1738232581698,3.11023,3215.2,3214.7,3.11067]
[1738232582072,3.89188,3215.4,3214.7,3.11067]
[1738232582272,3.89188,3215.4,3214.9,3.11047]
[1738232582502,7.002,3215.4,3214.7,6.2213]
[1738232583197,3.89188,3215.4,3214.7,3.11063]
[1738232583518,3.11014,3215.3,3214.8,0.23301703]
[1738232583812,3.11014,3215.3,3214.8,3.34362703]
[1738232583973,3.89188,3215.4,3214.8,3.34362703]
[1738232584420,3.11013,3215.3,3214.8,3.34362703]
[1738232584941,0.7818,3215.4,3214.8,3.11061]
[1738232585235,3.89184,3215.4,3214.8,3.11061]
[1738232585393,0.7818,3215.4,3214.8,0.7295043]
[1738232585595,0.7818,3215.4,3215.0,3.1104]
[1738232586309,3.89183,3215.4,3214.8,3.11053]
[1738232586509,3.11015,3215.3,3214.8,3.11053]
[1738232587297,3.11015,3215.3,3214.8,6.22108]
[1738232588044,0.7818,3215.4,3215.0,3.1104]
[1738232588491,0.7818,3215.4,3215.0,3.11034]
[1738232588687,3.86408,3215.6,3215.0,3.11034]
[1738232589393,3.86408,3215.6,3215.1,3.11024]
[1738232589603,0.7542,3215.6,3214.6,0.6934]
[1738232589836,3.11022,3215.2,3214.6,3.80412]
[1738232590002,0.7726,3215.1,3214.7,3.1107]
[1738232591141,0.7726,3215.1,3214.7,6.22135]
[1738232591339,0.7726,3215.1,3214.8,3.11061]
[1738232591821,0.7726,3215.1,3214.9,3.11048]
[1738232592137,3.7509,3215.3,3214.9,3.11048]
[1738232593296,3.7509,3215.3,3215.0,0.07683601]
[1738232593505,6.8611,3215.3,3214.8,3.11061]
[1738232593705,3.11022,3215.2,3215.1,0.07682521]
[1738232593905,3.11022,3215.2,3214.7,3.11065]